bitfinex/quotes_BTCUSD_20251104
["timestamp","ask_amount","ask_price","bid_price","bid_amount"]
[1762245462729,0.75271902,104580.0,104570.0,0.12604259]
[1762245463376,0.19124115,104580.0,104570.0,0.12604259]
[1762245463786,0.19124115,104580.0,104570.0,0.12904259]
[1762245463989,0.19124115,104580.0,104570.0,0.12604259]
[1762245464198,0.19123861,104590.0,104570.0,0.13404259]
[1762245464409,0.53123861,104590.0,104580.0,0.09625]
[1762245464621,0.56147787,104600.0,104580.0,0.09625]
[1762245464837,0.20072769,104620.0,104590.0,0.32002]
[1762245465048,0.19118674,104610.0,104600.0,0.03715]
[1762245465255,0.19118674,104610.0,104600.0,0.09281]
[1762245466418,0.19118631,104610.0,104600.0,0.09281]
[1762245467474,0.78933837,104620.0,104600.0,0.09281]
[1762245467700,0.19118631,104610.0,104600.0,0.09381]
[1762245467915,0.19118631,104610.0,104600.0,0.001]
[1762245467916,0.24040631,104610.0,104600.0,0.001]
[1762245468128,0.19118631,104610.0,104600.0,0.09381]
[1762245468310,0.78933837,104620.0,104600.0,0.09381]
[1762245468550,0.20185631,104610.0,104600.0,0.03915]
[1762245468769,0.85918418,104610.0,104600.0,0.002]
[1762245469191,0.76333418,104610.0,104600.0,0.03715]
[1762245469401,0.20185631,104610.0,104600.0,0.03715]
[1762245469602,0.76333418,104610.0,104600.0,0.03715]
[1762245470226,0.76333418,104610.0,104600.0,0.03815]
[1762245470637,0.76333418,104610.0,104600.0,0.03715]
[1762245471267,0.19123845,104590.0,104570.0,0.74637364]
[1762245471446,0.19124115,104580.0,104570.0,0.69071364]
[1762245471684,0.19124115,104580.0,104570.0,0.49071364]
[1762245471894,0.19124115,104580.0,104570.0,0.26694259]
[1762245472101,0.19124115,104580.0,104570.0,0.32260259]
[1762245473328,0.19124115,104580.0,104570.0,0.32360259]
[1762245473534,0.19124115,104580.0,104570.0,0.32260259]
[1762245473931,0.19124115,104580.0,104570.0,0.32560259]
[1762245474129,0.19124115,104580.0,104570.0,0.32760259]
[1762245474559,0.19116887,104620.0,104590.0,0.2]
[1762245474763,0.19116803,104620.0,104610.0,0.06473]
[1762245475122,0.19116803,104620.0,104610.0,0.12039]
[1762245475456,0.20070927,104630.0,104610.0,0.12039]
[1762245475677,0.22958927,104630.0,104610.0,0.12039]
[1762245476091,0.19116803,104620.0,104610.0,0.12039]
[1762245476299,0.19116803,104620.0,104610.0,0.12339]
[1762245476702,0.22958927,104630.0,104610.0,0.12039]
[1762245478509,0.19116803,104620.0,104610.0,0.12139]
[1762245478713,0.19116803,104620.0,104610.0,0.12439]
[1762245478925,0.76218714,104630.0,104610.0,0.12439]
[1762245479131,0.20070724,104630.0,104620.0,0.03715]
[1762245479338,0.20170724,104630.0,104620.0,0.09281]
[1762245479779,0.20070724,104630.0,104620.0,0.09281]
[1762245480401,0.20070724,104630.0,104620.0,0.03715]
[1762245480608,0.20170724,104630.0,104620.0,0.09281]
[1762245481272,0.19116803,104620.0,104610.0,0.08324]
[1762245481702,0.19116803,104620.0,104610.0,0.12039]
[1762245482541,0.19116803,104620.0,104610.0,0.06773]
[1762245483061,0.0292,104640.0,104610.0,0.12339]
[1762245483266,0.0292,104640.0,104630.0,0.05213]
[1762245483267,9.264e-05,104640.0,104630.0,0.05213]
[1762245483497,9.264e-05,104640.0,104630.0,0.26239473]
[1762245483707,9.264e-05,104640.0,104630.0,0.29893976]
[1762245484117,9.264e-05,104640.0,104630.0,0.33512204]
[1762245484571,9.264e-05,104640.0,104630.0,0.99604309]
[1762245484783,9.264e-05,104640.0,104630.0,1.33604309]
[1762245485216,7.4e-07,104640.0,104630.0,1.40902205]
[1762245486077,0.00100074,104640.0,104630.0,1.40902205]
[1762245486299,7.4e-07,104640.0,104630.0,1.40902205]
[1762245486509,0.5086565,104650.0,104640.0,0.91486526]
[1762245486713,0.45128362,104650.0,104640.0,0.91486526]
[1762245486938,0.42259718,104650.0,104640.0,0.91486526]
[1762245487150,0.39391074,104650.0,104640.0,0.91486526]
[1762245487374,0.3652243,104650.0,104640.0,0.88012375]
[1762245487583,0.33653786,104650.0,104640.0,0.88012375]
[1762245487787,0.33653786,104650.0,104640.0,0.87112376]
[1762245487788,0.30885142,104650.0,104640.0,0.87112376]
[1762245487999,0.28016498,104650.0,104640.0,0.88112375]
[1762245488237,0.25147854,104650.0,104640.0,0.88112375]
[1762245488449,0.2227921,104650.0,104640.0,0.88212375]
[1762245488659,0.19410566,104650.0,104640.0,0.87212376]
[1762245488869,0.16541922,104650.0,104640.0,0.87212376]
[1762245489085,0.10804634,104650.0,104640.0,0.87212376]
[1762245489290,0.0793599,104650.0,104640.0,0.88167726]
[1762245489517,0.04967346,104650.0,104640.0,0.88067726]
[1762245489724,0.05067346,104650.0,104640.0,0.88167726]
[1762245489936,0.05067346,104650.0,104640.0,0.53167727]
[1762245490141,0.05067346,104650.0,104640.0,0.87167727]
[1762245490763,0.05067346,104650.0,104640.0,0.83549499]
[1762245490965,0.05067346,104650.0,104640.0,0.87167727]
[1762245491702,0.05067346,104650.0,104640.0,0.68054578]
[1762245492767,0.05067346,104650.0,104640.0,0.70923605]
[1762245493049,0.05067346,104650.0,104640.0,0.90036754]
[1762245493683,0.05067346,104650.0,104640.0,0.91036753]
[1762245493880,0.05067346,104650.0,104640.0,0.94510904]
[1762245496587,0.05067346,104650.0,104640.0,0.96410903]
[1762245496807,0.05067346,104650.0,104640.0,0.95410904]
[1762245497067,0.05067346,104650.0,104640.0,0.96410903]
[1762245498202,0.05067346,104650.0,104640.0,0.94410905]
[1762245498433,0.05067346,104650.0,104640.0,0.95410904]
[1762245498662,0.05067346,104650.0,104640.0,0.94410905]
[1762245498941,0.05067346,104650.0,104640.0,0.91936753]
[1762245499142,0.05067346,104650.0,104640.0,0.86418526]
[1762245499291,0.05067346,104650.0,104640.0,0.90036754]
[1762245500493,0.05067346,104650.0,104640.0,0.70923605]
[1762245500682,0.05067346,104650.0,104640.0,0.3043635]
[1762245501109,0.24178669,104650.0,104640.0,0.1043635]
[1762245501313,0.04828991,104650.0,104640.0,0.3033635]
[1762245501516,0.04828991,104650.0,104640.0,0.33954578]
[1762245501726,0.04828991,104650.0,104640.0,0.34554578]
[1762245501727,0.04728991,104650.0,104640.0,0.34554578]
[1762245501932,0.04728991,104650.0,104640.0,0.3093635]
[1762245502149,0.23840314,104650.0,104640.0,0.1143635]
[1762245502378,0.24478314,104650.0,104640.0,0.0587035]
[1762245502579,1.3683337,104650.0,104640.0,0.0215535]
[1762245502798,1.3683337,104650.0,104640.0,0.0165535]
[1762245503019,1.3683337,104650.0,104640.0,0.0095535]
[1762245503189,1.3683337,104650.0,104640.0,0.0135535]
[1762245503392,1.3141137,104650.0,104640.0,0.0275535]
[1762245503596,1.3141137,104650.0,104640.0,0.0235535]
[1762245504049,1.2747937,104650.0,104640.0,0.0095535]
[1762245504246,0.19113149,104640.0,104630.0,0.0743735]
[1762245504595,0.19113149,104640.0,104630.0,0.1126935]
[1762245505005,0.20314298,104640.0,104630.0,0.1126935]
[1762245505417,0.19113149,104640.0,104630.0,0.1126935]
[1762245505619,0.19113149,104640.0,104630.0,0.1166935]
[1762245506243,0.04728991,104650.0,104630.0,0.30784287]
[1762245506457,0.04728991,104650.0,104640.0,0.11727314]
[1762245506698,0.23840314,104650.0,104640.0,0.11727314]
[1762245506825,0.04728991,104650.0,104640.0,0.11727314]
[1762245507885,0.04728991,104650.0,104640.0,0.13127314]
[1762245508135,0.04728991,104650.0,104640.0,0.32240463]
[1762245508342,0.04728991,104650.0,104640.0,0.11216]
[1762245508544,0.04728991,104650.0,104640.0,0.13127314]
[1762245508756,0.04728991,104650.0,104640.0,0.32840463]
[1762245508965,0.04728991,104650.0,104640.0,0.11816]
[1762245509169,0.04728991,104650.0,104640.0,0.32840463]
[1762245509369,0.04728991,104650.0,104640.0,0.30929149]
[1762245509522,0.04728991,104650.0,104640.0,0.11816]
[1762245509728,0.04728991,104650.0,104640.0,0.13727314]
[1762245510125,0.23840314,104650.0,104640.0,0.13727314]
[1762245511163,0.36310314,104650.0,104640.0,0.02]
[1762245511369,1.0531137,104650.0,104640.0,0.02]
[1762245511772,0.9934637,104650.0,104640.0,0.02]
[1762245511972,0.26332314,104650.0,104640.0,0.06006]
[1762245512174,0.26332314,104650.0,104640.0,0.04606]
[1762245512378,0.26332314,104650.0,104640.0,0.04006]
[1762245512559,0.26332314,104650.0,104640.0,0.10795]
[1762245512760,0.07220991,104650.0,104640.0,0.11195]
[1762245512962,0.04728991,104650.0,104640.0,0.11195]
[1762245513168,0.23840314,104650.0,104640.0,0.11195]
[1762245513619,0.04728991,104650.0,104640.0,0.11195]
[1762245513824,0.23840314,104650.0,104640.0,0.11195]
[1762245514178,0.23840314,104650.0,104640.0,0.13106314]
[1762245515561,0.04728991,104650.0,104640.0,0.13106314]
[1762245515715,0.23840314,104650.0,104640.0,0.13106314]
[1762245516322,0.23840314,104650.0,104640.0,0.11195]
[1762245517532,0.23840314,104650.0,104640.0,0.10963]
[1762245517931,0.27853314,104650.0,104640.0,0.013]
[1762245518133,0.33818314,104650.0,104640.0,0.013]
[1762245518422,1.0281937,104650.0,104640.0,0.013]
[1762245518821,0.9685437,104650.0,104640.0,0.013]
[1762245519368,0.27853314,104650.0,104640.0,0.013]
[1762245520562,0.9685437,104650.0,104640.0,0.07189]
[1762245520748,1.0281937,104650.0,104640.0,0.013]
[1762245520952,1.3085437,104650.0,104640.0,0.013]
[1762245521460,1.3681937,104650.0,104640.0,0.013]
[1762245521671,0.67818314,104650.0,104640.0,0.013]
[1762245521892,1.3681937,104650.0,104640.0,0.013]
[1762245524514,1.3681937,104650.0,104640.0,0.009]
[1762245524710,0.19116543,104630.0,104610.0,0.08782636]
[1762245524915,0.19116803,104620.0,104610.0,0.029029]
[1762245525499,0.19116803,104620.0,104610.0,0.125539]
[1762245525777,0.19116543,104630.0,104610.0,0.34465763]
[1762245526024,0.19116543,104630.0,104620.0,0.09651]
[1762245528294,0.19114976,104630.0,104620.0,0.09651]
[1762245528503,0.5407177,104640.0,104620.0,0.1196268]
[1762245528724,0.5407177,104640.0,104630.0,0.10335]
[1762245531180,0.5407177,104640.0,104630.0,0.11035]
[1762245531617,0.5407177,104640.0,104630.0,0.11335]
[1762245531828,0.26702314,104650.0,104630.0,0.11335]
[1762245532053,0.26702314,104650.0,104640.0,0.09651]
[1762245532307,0.60702314,104650.0,104640.0,0.09651]
[1762245533280,0.60702314,104650.0,104640.0,0.03961]
[1762245533862,0.19113149,104640.0,104630.0,0.01484]
[1762245534066,0.22255149,104640.0,104630.0,0.01484]
[1762245534288,0.19113149,104640.0,104630.0,0.10835]
[1762245534485,0.98007205,104640.0,104630.0,0.005]
[1762245534710,0.19116803,104620.0,104610.0,0.029029]
[1762245535115,0.19116803,104620.0,104610.0,0.068639]
[1762245535317,0.19115163,104630.0,104610.0,0.14465763]
[1762245535488,0.19115161,104630.0,104620.0,0.03961]
[1762245535686,0.19114976,104630.0,104620.0,0.09651]
[1762245537880,0.19114976,104630.0,104620.0,0.10551]
[1762245538696,0.19114976,104630.0,104620.0,0.10951]
[1762245539336,0.98009032,104630.0,104620.0,0.013]
[1762245539564,1.32009032,104630.0,104620.0,0.013]
[1762245541037,1.32009032,104630.0,104620.0,0.004]
[1762245541408,1.12894056,104630.0,104620.0,0.011]
[1762245541612,1.32009032,104630.0,104620.0,0.007]
[1762245542022,1.32009032,104630.0,104620.0,0.01]
[1762245542226,0.19116803,104620.0,104610.0,0.001449]
[1762245542398,0.84532447,104620.0,104610.0,0.001449]
[1762245544022,0.84532447,104620.0,104610.0,0.005449]
[1762245544241,0.84532447,104620.0,104610.0,0.011449]
[1762245552279,0.84532447,104620.0,104600.0,1e-08]
[1762245552280,0.65737631,104610.0,104600.0,1e-08]
[1762245552500,1.83697145,104610.0,104600.0,1e-08]
[1762245554132,0.81425857,104610.0,104600.0,1e-08]
[1762245554450,0.81425857,104610.0,104540.0,0.08577]
[1762245554451,0.19129603,104550.0,104540.0,0.02887]
[1762245554617,0.19129603,104550.0,104540.0,0.02896259]
[1762245554993,0.65416603,104550.0,104540.0,9.259e-05]
[1762245555171,0.19127773,104560.0,104540.0,0.09384259]
[1762245555372,0.19129603,104550.0,104540.0,0.05724259]
[1762245555597,0.19129603,104550.0,104540.0,0.12180259]
[1762245556132,0.75300247,104550.0,104540.0,0.06465259]
[1762245556335,0.81686247,104550.0,104540.0,0.02805259]
[1762245556785,0.81686247,104550.0,104540.0,0.03505259]
[1762245557601,1.15686247,104550.0,104540.0,0.03505259]
[1762245557825,1.21587247,104550.0,104540.0,0.00709259]
[1762245558373,1.21587247,104550.0,104540.0,0.00309259]
[1762245558583,1.15686247,104550.0,104540.0,0.00176478]
[1762245559741,1.12033247,104550.0,104540.0,0.00576478]
[1762245559955,0.59515603,104550.0,104540.0,0.00576478]
[1762245560168,0.59515603,104550.0,104540.0,0.00776478]
[1762245561049,1.15686247,104550.0,104540.0,0.00776478]
[1762245561287,0.59515603,104550.0,104540.0,0.00776478]
[1762245563316,0.01170784,104560.0,104540.0,0.10151478]
[1762245563541,0.19127813,104560.0,104550.0,0.09375]
[1762245563782,0.2294607,104570.0,104550.0,0.09375]
[1762245564006,0.1912419,104580.0,104560.0,0.09375]
[1762245564221,0.3367849,104590.0,104570.0,0.06456]
[1762245564436,0.3367849,104590.0,104570.0,0.12171]
[1762245564437,0.19124115,104580.0,104570.0,0.12171]
[1762245564874,0.19124115,104580.0,104570.0,0.14083594]
[1762245565311,0.19125944,104570.0,104560.0,0.22796]
[1762245565529,0.28678115,104580.0,104560.0,0.28511]
[1762245565965,0.89849134,104590.0,104570.0,0.0366]
[1762245566176,0.19124115,104580.0,104570.0,0.09375]
[1762245566399,0.3367849,104590.0,104570.0,0.09375]
[1762245566611,0.19124115,104580.0,104570.0,0.09475]
[1762245566818,0.19124115,104580.0,104570.0,0.09375]
[1762245567257,0.19125944,104570.0,104560.0,0.02796]
[1762245567474,0.19127773,104560.0,104550.0,0.08511]
[1762245567936,0.19127773,104560.0,104550.0,0.12171]
[1762245568797,0.19127773,104560.0,104550.0,0.12314317]
[1762245569030,0.53125944,104570.0,104550.0,0.12314317]
[1762245569247,0.53125944,104570.0,104560.0,0.0366]
[1762245569461,0.53125944,104570.0,104560.0,0.0386]
[1762245569673,0.53125944,104570.0,104560.0,0.0366]
[1762245570106,0.19127773,104560.0,104550.0,0.08811]
[1762245570346,0.19127773,104560.0,104550.0,0.08511]
[1762245570548,0.19127773,104560.0,104550.0,0.12057]
[1762245571400,0.19127773,104560.0,104550.0,0.12357]
[1762245571621,0.19127773,104560.0,104550.0,0.13057]
[1762245573016,0.75298417,104560.0,104550.0,0.07342]
[1762245573216,0.19127773,104560.0,104550.0,0.07342]
[1762245575079,0.22661773,104560.0,104550.0,0.01]
[1762245575226,1.18238417,104560.0,104550.0,0.01]
[1762245575458,1.18238417,104560.0,104550.0,0.01143317]
[1762245575656,1.18238417,104560.0,104550.0,0.00843317]
[1762245576066,1.18238417,104560.0,104550.0,0.00343317]
[1762245576261,1.18238417,104560.0,104550.0,0.00143317]
[1762245576475,1.18238417,104560.0,104550.0,0.00643317]
[1762245576708,1.18238417,104560.0,104550.0,0.00743317]
[1762245576890,1.18238417,104560.0,104550.0,0.00243317]
[1762245577295,1.18238417,104560.0,104550.0,0.00543317]
[1762245579704,1.18238417,104560.0,104550.0,0.00243317]
[1762245579900,1.18238417,104560.0,104550.0,0.00143317]
[1762245580139,1.18238417,104560.0,104550.0,0.00243317]
[1762245583352,1.12832417,104560.0,104550.0,0.02855317]
[1762245583559,1.18238417,104560.0,104550.0,0.02855317]
[1762245584349,1.18238417,104560.0,104550.0,0.00243317]
[1762245588571,0.56661773,104560.0,104550.0,0.06635317]
[1762245588790,0.53127773,104560.0,104550.0,0.12204317]
[1762245589004,0.53127773,104560.0,104550.0,0.10681317]
[1762245589219,0.24829944,104570.0,104550.0,0.10681317]
[1762245589435,0.19125944,104570.0,104560.0,0.03717]
[1762245589651,0.53125944,104570.0,104560.0,0.03717]
[1762245589864,0.19125944,104570.0,104560.0,0.09286]
[1762245590563,0.19125944,104570.0,104560.0,0.03717]
[1762245591026,0.19125944,104570.0,104560.0,0.09286]
[1762245591434,0.22825944,104570.0,104560.0,0.09286]
[1762245591668,0.024,104570.0,104560.0,0.11198777]
[1762245591929,0.2008032,104580.0,104560.0,0.30526475]
[1762245592145,0.5408032,104580.0,104570.0,0.09286]
[1762245592362,0.2008032,104580.0,104570.0,0.09286]
[1762245592577,0.19124115,104580.0,104570.0,0.09286]
[1762245593249,0.6767849,104590.0,104570.0,0.09286]
[1762245593472,0.19124115,104580.0,104570.0,0.09286]
[1762245594510,0.19124115,104580.0,104570.0,0.09386]
[1762245594991,0.19124115,104580.0,104570.0,0.11398594]
[1762245595448,0.65428751,104590.0,104580.0,0.03717]
[1762245596557,0.46944126,104590.0,104580.0,0.03726259]
[1762245597870,0.46944126,104590.0,104580.0,0.03926259]
[1762245598052,0.46944126,104590.0,104580.0,0.04026259]
[1762245598489,0.55383839,104590.0,104580.0,0.04026259]
[1762245598694,0.55383839,104590.0,104580.0,0.09595259]
[1762245600468,0.55383839,104590.0,104580.0,0.04026259]
[1762245600672,1.21864483,104590.0,104580.0,0.00309259]
[1762245601081,1.16160483,104590.0,104580.0,0.00309259]
[1762245601304,0.56433839,104590.0,104580.0,0.09595259]
[1762245601516,0.35305438,104590.0,104580.0,0.09595259]
[1762245601736,0.00135715,104590.0,104580.0,0.30631785]
[1762245601936,0.00135715,104590.0,104580.0,0.94811479]
[1762245602114,0.00135715,104590.0,104580.0,0.75687364]
[1762245602363,0.19258002,104590.0,104580.0,0.09595259]
[1762245602764,0.19258002,104590.0,104580.0,0.09395259]
[1762245603384,0.80242053,104590.0,104580.0,0.00109259]
[1762245603587,0.20515409,104590.0,104580.0,0.03826259]
[1762245603814,0.76686053,104590.0,104580.0,0.03726259]
[1762245604091,0.00086122,104590.0,104580.0,0.29019374]
[1762245604391,0.00086122,104590.0,104580.0,0.99685209]
[1762245605119,0.19208409,104590.0,104580.0,0.29895259]
[1762245605344,0.00086122,104590.0,104580.0,0.49019374]
[1762245605521,0.00086122,104590.0,104580.0,0.96066981]
[1762245606349,0.00086122,104590.0,104580.0,0.76942866]
[1762245606566,0.19208409,104590.0,104580.0,0.76942866]
[1762245606792,0.00086122,104590.0,104580.0,0.99685209]
[1762245606992,0.19208409,104590.0,104580.0,0.80561094]
[1762245607143,0.19208409,104590.0,104580.0,0.76942866]
[1762245607350,0.00086122,104590.0,104580.0,0.76942866]
[1762245607554,0.19208409,104590.0,104580.0,0.56942866]
[1762245607908,0.00086122,104590.0,104580.0,0.76066981]
[1762245608581,0.19208409,104590.0,104580.0,0.09895259]
[1762245610810,1.00096544,104590.0,104580.0,0.00609259]
[1762245611036,1.34096544,104590.0,104580.0,0.00609259]
[1762245611572,1.34096544,104590.0,104580.0,0.00209259]
[1762245611991,1.34096544,104590.0,104580.0,0.00409259]
[1762245612406,1.34096544,104590.0,104580.0,0.00209259]
[1762245613022,1.34096544,104590.0,104580.0,9.259e-05]
[1762245613890,1.34096544,104590.0,104580.0,0.00109259]
[1762245614342,1.34096544,104590.0,104580.0,9.259e-05]
[1762245614955,0.65073409,104590.0,104580.0,9.259e-05]
[1762245615364,0.59369409,104590.0,104580.0,9.259e-05]
[1762245615537,0.19208409,104590.0,104580.0,0.08901259]
[1762245616350,0.19208409,104590.0,104580.0,0.03370259]
[1762245617033,0.19208409,104590.0,104580.0,0.03770259]
[1762245617241,0.30786409,104590.0,104580.0,0.00409259]
[1762245617446,0.21740409,104590.0,104580.0,0.03970259]
[1762245617650,0.19208409,104590.0,104580.0,0.09501259]
[1762245618265,0.25184409,104590.0,104580.0,0.00609259]
[1762245618705,0.21740409,104590.0,104580.0,0.03970259]
[1762245619086,0.19208409,104590.0,104580.0,0.09501259]
[1762245619315,0.30786409,104590.0,104580.0,0.00609259]
[1762245619721,0.25184409,104590.0,104580.0,0.00609259]
[1762245620548,0.99809544,104590.0,104580.0,0.00609259]
[1762245620953,0.30786409,104590.0,104580.0,0.00609259]
[1762245621389,0.30786409,104590.0,104580.0,9.259e-05]
[1762245621606,0.30786409,104590.0,104580.0,0.00209259]
[1762245621822,0.30786409,104590.0,104580.0,0.00309259]
[1762245624800,0.25184409,104590.0,104580.0,0.00309259]
[1762245625219,0.19208409,104590.0,104580.0,0.09201259]
[1762245628135,0.19208409,104590.0,104580.0,0.1111367]
[1762245629955,0.19208409,104590.0,104580.0,0.09201259]
[1762245630730,0.30020409,104590.0,104580.0,0.00309259]
[1762245631607,0.99043544,104590.0,104580.0,0.00309259]
[1762245632455,0.64020409,104590.0,104580.0,0.00309259]
[1762245633282,1.33043544,104590.0,104580.0,0.00309259]
[1762245633487,0.19127773,104560.0,104550.0,0.01395317]
[1762245633754,0.19127773,104560.0,104550.0,0.0140985]
[1762245633958,0.61621773,104560.0,104550.0,0.0140985]
[1762245634084,0.61621773,104560.0,104550.0,0.00014533]
[1762245634787,0.56603773,104560.0,104550.0,0.01290533]
[1762245635553,0.56603773,104560.0,104550.0,0.01790533]
[1762245635965,0.56603773,104560.0,104550.0,0.01490533]
[1762245636167,0.56603773,104560.0,104550.0,0.01190533]
[1762245636377,0.56603773,104560.0,104550.0,0.01490533]
[1762245637158,0.56603773,104560.0,104550.0,0.05025533]
[1762245637584,0.53127773,104560.0,104550.0,0.05025533]
[1762245642886,0.56603773,104560.0,104550.0,0.05025533]
[1762245643813,0.59119773,104560.0,104550.0,0.05025533]
[1762245643987,0.55643773,104560.0,104550.0,0.09971533]
[1762245644198,0.53127773,104560.0,104550.0,0.09971533]
[1762245645971,0.55757773,104560.0,104550.0,0.05025533]
[1762245646499,0.53127773,104560.0,104550.0,0.10288533]
[1762245652454,0.53127773,104560.0,104550.0,0.592491]
[1762245652693,0.53127773,104560.0,104550.0,0.5733614]
[1762245653089,0.51100181,104560.0,104550.0,0.5733614]
[1762245653491,0.34,104560.0,104550.0,0.5733614]
[1762245653703,0.1912752,104570.0,104550.0,0.76465743]
[1762245653929,0.5312752,104570.0,104560.0,0.11173]
[1762245654140,0.1912752,104570.0,104560.0,0.31173]
[1762245654491,0.1912752,104570.0,104560.0,0.11173]
[1762245656631,0.1912752,104570.0,104560.0,0.11273]
[1762245657265,0.1912752,104570.0,104560.0,0.30400773]
[1762245657422,0.54083367,104580.0,104560.0,0.30400773]
[1762245657631,0.54083367,104580.0,104570.0,0.11173]
[1762245658830,0.34,104580.0,104570.0,0.11173]
[1762245659063,0.54083521,104580.0,104570.0,0.11173]
[1762245659258,0.20083521,104580.0,104570.0,0.11173]
[1762245660272,0.20083521,104580.0,104570.0,0.11273]
[1762245661498,0.29966521,104580.0,104570.0,0.001]
[1762245661700,0.98989656,104580.0,104570.0,0.001]
[1762245662911,0.99089656,104580.0,104570.0,0.001]
[1762245663252,1.33089656,104580.0,104570.0,0.001]
[1762245663452,0.19127773,104560.0,104550.0,0.02061533]
[1762245663979,0.19127773,104560.0,104550.0,0.05333533]
[1762245664188,0.19127773,104560.0,104550.0,0.10596533]
[1762245664613,0.19127773,104560.0,104550.0,0.12909493]
[1762245665029,0.19127773,104560.0,104550.0,0.10996533]
[1762245665429,0.22378773,104560.0,104550.0,0.05733533]
[1762245666232,0.22378773,104560.0,104550.0,0.02461533]
[1762245666459,0.27808773,104560.0,104550.0,0.02461533]
[1762245666838,0.22378773,104560.0,104550.0,0.02461533]
[1762245667440,0.19127773,104560.0,104550.0,0.10996533]
[1762245668519,0.19127773,104560.0,104550.0,0.30126136]
[1762245669168,0.53127513,104570.0,104550.0,0.97173743]
[1762245669367,0.19127773,104560.0,104550.0,0.73127368]
[1762245669567,0.53127513,104570.0,104550.0,0.92256971]
[1762245669909,0.53127513,104570.0,104560.0,0.10134524]
[1762245670255,0.19127773,104560.0,104550.0,0.7457214]
[1762245670659,0.19127773,104560.0,104550.0,0.96773743]
[1762245670861,0.19127773,104560.0,104550.0,0.7764414]
[1762245671555,0.19127773,104560.0,104550.0,0.7774414]
[1762245671757,0.5312617,104570.0,104550.0,0.97173743]
[1762245671964,0.5312617,104570.0,104560.0,0.08535]
[1762245672829,0.53125944,104570.0,104560.0,0.10447777]
[1762245673160,0.53125944,104570.0,104560.0,0.08535]
[1762245673518,0.53125944,104570.0,104560.0,0.11173]
[1762245674309,0.92686083,104570.0,104560.0,0.11273]
[1762245674510,0.92686083,104570.0,104560.0,0.09273]
[1762245674910,0.92686083,104570.0,104560.0,0.09173]
[1762245675110,1.03549083,104570.0,104560.0,0.02638]
[1762245675327,0.63988944,104570.0,104560.0,0.02638]
[1762245675540,0.92686083,104570.0,104560.0,0.11267]
[1762245675735,0.53125944,104570.0,104560.0,0.11267]
[1762245676515,0.53125944,104570.0,104560.0,0.11567]
[1762245677678,0.56337944,104570.0,104560.0,0.03038]
[1762245677878,0.95898083,104570.0,104560.0,0.03038]
[1762245678090,0.92686083,104570.0,104560.0,0.06399]
[1762245678498,1.00905083,104570.0,104560.0,0.004]
[1762245680451,1.03549083,104570.0,104560.0,0.004]
[1762245680677,0.63988944,104570.0,104560.0,0.004]
[1762245680837,1.03549083,104570.0,104560.0,0.004]
[1762245682154,0.98542083,104570.0,104560.0,0.004]
[1762245684425,0.26533409,104590.0,104570.0,0.19125889]
[1762245684632,0.19124115,104580.0,104570.0,0.41029944]
[1762245684838,0.53208409,104590.0,104580.0,0.10433]
[1762245685039,1.00370548,104590.0,104580.0,0.01904]
[1762245685240,0.64022409,104590.0,104580.0,0.01904]
[1762245685417,0.98575548,104590.0,104580.0,0.05265]
[1762245685812,0.98675548,104590.0,104580.0,0.05265]
[1762245686197,0.98575548,104590.0,104580.0,0.05265]
[1762245686590,0.19124115,104580.0,104570.0,0.01904]
[1762245686793,0.58684254,104580.0,104570.0,0.01904]
[1762245687003,0.19124115,104580.0,104570.0,0.10433]
[1762245687606,0.19124115,104580.0,104570.0,0.12345594]
[1762245687935,0.00086122,104590.0,104570.0,0.31571538]
[1762245688130,0.19208454,104590.0,104580.0,0.08529]
[1762245688339,0.19208454,104590.0,104580.0,0.55576607]
[1762245688561,0.19308454,104590.0,104580.0,0.55576607]
[1762245690006,0.19308454,104590.0,104580.0,0.74700722]
[1762245690208,0.19308454,104590.0,104580.0,0.55576607]
[1762245691021,0.58868593,104590.0,104580.0,0.55576607]
[1762245691419,0.58768593,104590.0,104580.0,0.55676607]
[1762245691865,0.58768593,104590.0,104580.0,0.55876607]
[1762245692085,0.58768593,104590.0,104580.0,0.50708607]
[1762245692618,0.61971593,104590.0,104580.0,0.50708607]
[1762245692820,0.66642593,104590.0,104580.0,0.47347607]
[1762245693475,0.69151593,104590.0,104580.0,0.49074607]
[1762245693611,0.64480593,104590.0,104580.0,0.49074607]
[1762245693951,0.69151593,104590.0,104580.0,0.49074607]
[1762245694131,0.64480593,104590.0,104580.0,0.49074607]
[1762245694364,0.61277593,104590.0,104580.0,0.52392607]
[1762245695968,0.19208454,104590.0,104580.0,0.57110607]
[1762245696181,0.19208409,104590.0,104580.0,0.57110607]
[1762245698020,0.19208409,104590.0,104580.0,0.76234722]
[1762245698420,0.19208409,104590.0,104580.0,0.57110607]
[1762245700695,0.58768548,104590.0,104580.0,0.57110607]
[1762245701450,0.19208409,104590.0,104580.0,0.57110607]
[1762245703212,0.58768548,104590.0,104580.0,0.57110607]
[1762245704479,0.69151548,104590.0,104580.0,0.49074607]
[1762245704716,0.21717409,104590.0,104580.0,0.52276607]
[1762245704914,0.19208409,104590.0,104580.0,0.57194607]
[1762245707113,0.58768548,104590.0,104580.0,0.57194607]
[1762245707311,0.69367548,104590.0,104580.0,0.49074607]
[1762245707897,0.64505548,104590.0,104580.0,0.49074607]
[1762245708492,0.19208409,104590.0,104580.0,0.57194607]
[1762245708941,0.58768548,104590.0,104580.0,0.57194607]
[1762245709269,0.19208409,104590.0,104580.0,0.57194607]
[1762245709614,0.19208409,104590.0,104580.0,0.10147]
[1762245710637,0.58768548,104590.0,104580.0,0.10147]
[1762245711654,0.69367548,104590.0,104580.0,0.003]
[1762245711893,1.42927687,104590.0,104580.0,0.003]
[1762245712639,1.42927687,104590.0,104580.0,0.001]
[1762245713073,0.53125944,104570.0,104560.0,0.01904]
[1762245713255,0.92686083,104570.0,104560.0,0.01904]
[1762245713893,0.92686083,104570.0,104560.0,0.05106]
[1762245714051,0.95120083,104570.0,104560.0,0.05106]
[1762245714655,0.95120083,104570.0,104560.0,0.05306]
[1762245715674,0.95120083,104570.0,104560.0,0.05406]
[1762245716529,0.98423083,104570.0,104560.0,0.05406]
[1762245716883,1.03285083,104570.0,104560.0,0.02204]
[1762245717514,0.58862944,104570.0,104560.0,0.02204]
[1762245717708,0.98423083,104570.0,104560.0,0.02204]
[1762245720426,0.58862944,104570.0,104560.0,0.02204]
[1762245720643,0.55559944,104570.0,104560.0,0.10324]
[1762245720848,0.53125944,104570.0,104560.0,0.10324]
[1762245721043,0.53125944,104570.0,104560.0,0.57371607]
[1762245721845,0.55559944,104570.0,104560.0,0.52453607]
[1762245722049,0.63724944,104570.0,104560.0,0.47347607]
[1762245722248,1.03285083,104570.0,104560.0,0.003]
[1762245723466,0.55559944,104570.0,104560.0,0.05406]
[1762245723664,0.00086122,104590.0,104560.0,1.02030385]